[Event "12th Arad Open 2019"]
[Site "Arad"]
[Date "2019.07.26"]
[Round "4.28"]
[White "Lyell, Mark"]
[Black "Bucur, Denisa-Andreea"]
[Result "1/2-1/2"]
[ECO "B23"]
[WhiteElo "2216"]
[BlackElo "1943"]
[Annotator "NA"]
[PlyCount "44"]
[EventDate "2019.07.24"]
[EventType "swiss"]
[EventCountry "ROU"]
[SourceTitle "playchess.com"]
[Source "ChessBase"]
[SourceQuality "1"]
[TimeControl "40/5400+30:900+30"]

1. e4 {[%emt 0:00:00]} c5 {[%emt 0:00:00]} 2. Nc3 {[%emt 0:00:00]} g6 {[%emt 0:00:03]} 3. f4 {[%emt 0:01:31]} Bg7 {[%emt 0:00:22]} 4. Nf3 {[%emt 0:00:17]} Nc6 {[%emt 0:00:26]} 5. Bb5 {[%emt 0:00:13]} Nd4 {[%emt 0:00:19]} 6. a4 {[%emt 0:00:29]} Nxb5 {[%emt 0:07:55]} 7. axb5 {[%emt 0:00:09]} d6 {[%emt 0:02:22]} 8. O-O {[%emt 0:01:36]} Nf6 {[%emt 0:04:25]} 9. d3 {[%emt 0:03:12]} O-O {[%emt 0:00:50]} 10. Qe1 {[%emt 0:03:38]} e6 {[%emt 0:11:47]} 11. e5 {[%emt 0:01:41]} Nd7 {[%emt 0:13:48]} 12. exd6 {[%emt 0:04:29]} Qb6 {[%emt 0:05:19]} 13. f5 {[%emt 0:20:23]} exf5 {[%emt 0:14:42]} 14. Nd5 {[%emt 0:13:59]} Qxd6 {[%emt 0:01:17]} 15. c4 {[%emt 0:00:07]} Ne5 {[%emt 0:02:41]} 16. Bf4 {[%emt 0:05:06]} f6 {[%emt 0:05:41]} 17. b4 {[%emt 0:03:49]} b6 {[%emt 0:03:29]} 18. bxc5 {[%emt 0:12:42]} bxc5 {[%emt 0:04:53]} 19. Qg3 {[%emt 0:02:02]} Bb7 {[%emt 0:01:17]} 20. Nxf6+ {[%emt 0:00:51]} Bxf6 {[%emt 0:00:09]} 21. Nxe5 {[%emt 0:00:16]} Qd4+ {[%emt 0:02:23]} 22. Kh1 {[%emt 0:01:06]} Rfe8 {[%emt 0:11:08]} 1/2-1/2

[Event "12th Arad Open 2019"]
[Site "Arad"]
[Date "2019.07.26"]
[Round "4.29"]
[White "Pasti, Aron"]
[Black "Pislariu, Stefanel-Vasilica"]
[Result "1-0"]
[ECO "C17"]
[WhiteElo "2209"]
[BlackElo "1934"]
[Annotator "NA"]
[PlyCount "92"]
[EventDate "2019.07.24"]
[EventType "swiss"]
[EventCountry "ROU"]
[SourceTitle "playchess.com"]
[Source "ChessBase"]
[SourceQuality "1"]
[TimeControl "40/5400+30:900+30"]

1. e4 {[%emt 0:00:00]} e6 {[%emt 0:00:00]} 2. d4 {[%emt 0:00:00]} d5 {[%emt 0:00:00]} 3. Nc3 {[%emt 0:00:00]} Bb4 {[%emt 0:00:11]} 4. e5 {[%emt 0:00:00]} c5 {[%emt 0:01:31]} 5. Bd2 {[%emt 0:00:00]} Bxc3 {[%emt 0:02:33]} 6. Bxc3 {[%emt 0:02:59]} b6 {[%emt 0:00:22]} 7. Qg4 {[%emt 0:03:36]} g6 {[%emt 0:00:47]} 8. Nf3 {[%emt 0:03:24]} Ba6 {[%emt 0:06:45]} 9. Bxa6 {[%emt 0:08:16]} Nxa6 {[%emt 0:00:29]} 10. O-O {[%emt 0:01:48]} Ne7 {[%emt 0:06:21]} 11. Bd2 {[%emt 0:03:23]} h6 {[%emt 0:00:29]} 12. c3 {[%emt 0:02:13]} Nc7 {[%emt 0:01:32]} 13. dxc5 {[%emt 0:10:26]} bxc5 {[%emt 0:01:52]} 14. Be3 {[%emt 0:00:32]} c4 {[%emt 0:03:23]} 15. b3 {[%emt 0:10:20]} Nb5 {[%emt 0:01:54]} 16. Rac1 {[%emt 0:10:52]} Rc8 {[%emt 0:03:05]} 17. a4 {[%emt 0:01:31]} Na3 {[%emt 0:02:41]} 18. b4 {[%emt 0:06:22]} Qd7 {[%emt 0:00:30]} 19. Nd4 {[%emt 0:01:26]} Nc6 {[%emt 0:01:20]} 20. Nxc6 {[%emt 0:02:54]} Qxc6 {[%emt 0:06:19]} 21. Qd1 {[%emt 0:00:30]} a5 {[%emt 0:03:27]} 22. b5 {[%emt 0:03:40]} Nxb5 {[%emt 0:01:41]} 23. axb5 {[%emt 0:00:11]} Qxb5 {[%emt 0:00:05]} 24. Rb1 {[%emt 0:00:02]} Qd7 {[%emt 0:00:13]} 25. Qc1 {[%emt 0:00:37]} O-O {[%emt 0:05:51]} 26. Bxh6 {[%emt 0:00:09]} Rfe8 {[%emt 0:00:30]} 27. Bg5 {[%emt 0:00:03]} f5 {[%emt 0:00:11]} 28. exf6 {[%emt 0:04:15]} e5 {[%emt 0:00:09]} 29. f4 {[%emt 0:01:28]} e4 {[%emt 0:00:18]} 30. f5 {[%emt 0:00:51]} gxf5 {[%emt 0:00:26]} 31. Qf4 {[%emt 0:01:00]} Kf7 {[%emt 0:00:49]} 32. Qxf5 {[%emt 0:01:50]} Qxf5 {[%emt 0:00:38]} 33. Rxf5 {[%emt 0:00:02]} Ke6 {[%emt 0:01:45]} 34. g4 {[%emt 0:00:13]} Rb8 {[%emt 0:00:40]} 35. Rxb8 {[%emt 0:01:10]} Rxb8 {[%emt 0:00:05]} 36. f7 {[%emt 0:00:03]} Rf8 {[%emt 0:00:24]} 37. Bh6 {[%emt 0:02:10]} Rxf7 {[%emt 0:00:07]} 38. Rxf7 {[%emt 0:00:03]} Kxf7 {[%emt 0:00:12]} 39. Kf2 {[%emt 0:00:09]} a4 {[%emt 0:01:05]} 40. Bc1 {[%emt 0:00:00]} Kg6 {[%emt 0:00:00]} 41. h4 {[%emt 0:00:11]} Kf6 {[%emt 0:01:20]} 42. Ke3 {[%emt 0:00:05]} Kg6 {[%emt 0:00:10]} 43. Kd4 {[%emt 0:00:10]} Kf6 {[%emt 0:00:40]} 44. Kxd5 {[%emt 0:00:28]} e3 {[%emt 0:00:54]} 45. Bxe3 {[%emt 0:00:11]} a3 {[%emt 0:00:04]} 46. Bc1 {[%emt 0:00:07]} a2 {[%emt 0:00:03]} 1-0

[Event "12th Arad Open 2019"]
[Site "Arad"]
[Date "2019.07.26"]
[Round "4.30"]
[White "Kersten, Julian"]
[Black "Martian, Dragos-Daniel"]
[Result "1-0"]
[ECO "A45"]
[WhiteElo "1951"]
[BlackElo "2201"]
[Annotator "NA"]
[PlyCount "65"]
[EventDate "2019.07.24"]
[EventType "swiss"]
[EventCountry "ROU"]
[SourceTitle "playchess.com"]
[Source "ChessBase"]
[SourceQuality "1"]
[TimeControl "40/5400+30:900+30"]

1. d4 {[%emt 0:00:00]} Nf6 {[%emt 0:00:00]} 2. Bg5 {[%emt 0:00:01]} e6 {[%emt 0:00:32]} 3. e4 {[%emt 0:00:19]} h6 {[%emt 0:00:41]} 4. Bxf6 {[%emt 0:00:05]} Qxf6 {[%emt 0:00:23]} 5. c3 {[%emt 0:00:06]} d5 {[%emt 0:00:12]} 6. e5 {[%emt 0:01:15]} Qd8 {[%emt 0:00:29]} 7. h4 {[%emt 0:00:07]} c5 {[%emt 0:01:48]} 8. Bd3 {[%emt 0:09:16]} Nc6 {[%emt 0:02:01]} 9. Nf3 {[%emt 0:00:28]} cxd4 {[%emt 0:03:48]} 10. cxd4 {[%emt 0:00:48]} Qb6 {[%emt 0:00:25]} 11. Qd2 {[%emt 0:02:25]} Bd7 {[%emt 0:01:14]} 12. Be2 {[%emt 0:02:27]} Rc8 {[%emt 0:02:29]} 13. Nc3 {[%emt 0:01:51]} Na5 {[%emt 0:02:55]} 14. h5 {[%emt 0:03:51]} Nc4 {[%emt 0:01:58]} 15. Bxc4 {[%emt 0:00:16]} Rxc4 {[%emt 0:00:14]} 16. Rh3 {[%emt 0:06:36]} Qc7 {[%emt 0:04:33]} 17. Rg3 {[%emt 0:10:53]} b5 {[%emt 0:00:39]} 18. Rc1 {[%emt 0:02:34]} Qa5 {[%emt 0:04:00]} 19. a3 {[%emt 0:05:17]} Qb6 {[%emt 0:02:44]} 20. Qf4 {[%emt 0:07:43]} a5 {[%emt 0:05:36]} 21. Ne2 {[%emt 0:12:28]} b4 {[%emt 0:02:52]} 22. Nd2 {[%emt 0:04:07]} Rxc1+ {[%emt 0:01:20]} 23. Nxc1 {[%emt 0:00:03]} Qc7 {[%emt 0:04:03]} 24. Nd3 {[%emt 0:02:56]} bxa3 {[%emt 0:03:11]} 25. bxa3 {[%emt 0:00:17]} Bb5 {[%emt 0:00:51]} 26. Nc5 {[%emt 0:05:34]} Qa7 {[%emt 0:04:57]} 27. a4 {[%emt 0:05:23]} Bc6 {[%emt 0:13:25]} 28. Ndb3 {[%emt 0:00:34]} Qb6 {[%emt 0:12:19]} 29. Qd2 {[%emt 0:07:29]} Bxc5 {[%emt 0:12:15]} 30. dxc5 {[%emt 0:00:23]} Qb8 {[%emt 0:01:44]} 31. Qf4 {[%emt 0:05:34]} O-O {[%emt 0:01:15]} 32. Qf6 {[%emt 0:02:17]} Qb4+ {[%emt 0:05:20]} 33. Nd2 {[%emt 0:00:22]} 1-0

[Event "12th Arad Open 2019"]
[Site "Arad"]
[Date "2019.07.26"]
[Round "4.31"]
[White "Daianu, Cristian-Clement"]
[Black "Tampea, Radu"]
[Result "1-0"]
[ECO "B35"]
[WhiteElo "2199"]
[BlackElo "1913"]
[Annotator "NA"]
[PlyCount "79"]
[EventDate "2019.07.24"]
[EventType "swiss"]
[EventCountry "ROU"]
[SourceTitle "playchess.com"]
[Source "ChessBase"]
[SourceQuality "1"]
[TimeControl "40/5400+30:900+30"]

1. e4 {[%emt 0:00:00]} c5 {[%emt 0:00:00]} 2. Nf3 {[%emt 0:00:00]} Nc6 {[%emt 0:00:00]} 3. d4 {[%emt 0:00:00]} cxd4 {[%emt 0:00:00]} 4. Nxd4 {[%emt 0:00:00]} g6 {[%emt 0:00:00]} 5. Nc3 {[%emt 0:01:16]} Bg7 {[%emt 0:00:42]} 6. Be3 {[%emt 0:00:08]} Nf6 {[%emt 0:00:05]} 7. Bc4 {[%emt 0:01:47]} O-O {[%emt 0:00:10]} 8. Bb3 {[%emt 0:00:08]} d6 {[%emt 0:00:08]} 9. f3 {[%emt 0:01:08]} Na5 {[%emt 0:00:11]} 10. Qd2 {[%emt 0:03:22]} a6 {[%emt 0:00:09]} 11. h4 {[%emt 0:01:18]} Nxb3 {[%emt 0:03:29]} 12. axb3 {[%emt 0:01:09]} h5 {[%emt 0:00:10]} 13. O-O-O {[%emt 0:01:00]} Bd7 {[%emt 0:00:58]} 14. g4 {[%emt 0:02:05]} b5 {[%emt 0:08:22]} 15. Bh6 {[%emt 0:07:03]} Rc8 {[%emt 0:00:55]} 16. Nd5 {[%emt 0:04:47]} Nxd5 {[%emt 1:07:27]} 17. exd5 {[%emt 0:00:48]} Bf6 {[%emt 0:04:50]} 18. Bxf8 {[%emt 0:08:21]} Kxf8 {[%emt 0:00:45]} 19. gxh5 {[%emt 0:00:09]} Qc7 {[%emt 0:01:19]} 20. Kb1 {[%emt 0:03:16]} Qc5 {[%emt 0:02:44]} 21. hxg6 {[%emt 0:02:40]} Qxd5 {[%emt 0:01:11]} 22. gxf7 {[%emt 0:00:12]} Qxf7 {[%emt 0:00:09]} 23. f4 {[%emt 0:05:47]} Qh7 {[%emt 0:01:16]} 24. Rh2 {[%emt 0:02:42]} Ke8 {[%emt 0:05:39]} 25. h5 {[%emt 0:03:14]} Rc5 {[%emt 0:00:22]} 26. Qg2 {[%emt 0:00:38]} Bxd4 {[%emt 0:01:13]} 27. Rxd4 {[%emt 0:00:15]} Rxc2 {[%emt 0:00:07]} 28. Qxc2 {[%emt 0:01:04]} Bf5 {[%emt 0:00:05]} 29. Qxf5 {[%emt 0:00:23]} Qxf5+ {[%emt 0:00:05]} 30. Ka2 {[%emt 0:00:19]} a5 {[%emt 0:01:49]} 31. h6 {[%emt 0:00:19]} Qh7 {[%emt 0:00:04]} 32. Rd5 {[%emt 0:01:17]} a4 {[%emt 0:00:13]} 33. Rxb5 {[%emt 0:00:12]} axb3+ {[%emt 0:00:05]} 34. Rxb3 {[%emt 0:00:04]} Kf8 {[%emt 0:01:11]} 35. f5 {[%emt 0:00:45]} Kg8 {[%emt 0:01:05]} 36. f6 {[%emt 0:00:51]} Kf7 {[%emt 0:00:29]} 37. fxe7 {[%emt 0:00:12]} Qf5 {[%emt 0:00:24]} 38. h7 {[%emt 0:00:29]} Qa5+ {[%emt 0:00:07]} 39. Ra3 {[%emt 0:00:04]} Qd5+ {[%emt 0:00:03]} 40. b3 {[%emt 0:00:00]} 1-0

[Event "12th Arad Open 2019"]
[Site "Arad"]
[Date "2019.07.26"]
[Round "4.32"]
[White "Obada, Ema"]
[Black "Michalicka, Milan"]
[Result "1-0"]
[ECO "B49"]
[WhiteElo "1946"]
[BlackElo "2190"]
[Annotator "NA"]
[PlyCount "73"]
[EventDate "2019.07.24"]
[EventType "swiss"]
[EventCountry "ROU"]
[SourceTitle "playchess.com"]
[Source "ChessBase"]
[SourceQuality "1"]
[TimeControl "40/5400+30:900+30"]

1. e4 {[%emt 0:00:00]} c5 {[%emt 0:00:00]} 2. Nf3 {[%emt 0:00:00]} e6 {[%emt 0:00:00]} 3. d4 {[%emt 0:00:00]} cxd4 {[%emt 0:00:00]} 4. Nxd4 {[%emt 0:00:00]} Nc6 {[%emt 0:00:00]} 5. Nc3 {[%emt 0:01:39]} Qc7 {[%emt 0:00:07]} 6. Be2 {[%emt 0:01:29]} a6 {[%emt 0:00:20]} 7. Be3 {[%emt 0:03:30]} Nf6 {[%emt 0:00:25]} 8. a3 {[%emt 0:02:46]} Be7 {[%emt 0:01:01]} 9. O-O {[%emt 0:00:32]} O-O {[%emt 0:00:14]} 10. f4 {[%emt 0:03:12]} d6 {[%emt 0:00:52]} 11. Bf3 {[%emt 0:05:11]} Bd7 {[%emt 0:03:37]} 12. Qe1 {[%emt 0:11:53]} Nxd4 {[%emt 0:04:42]} 13. Bxd4 {[%emt 0:00:13]} e5 {[%emt 0:00:34]} 14. fxe5 {[%emt 0:05:28]} dxe5 {[%emt 0:00:10]} 15. Qg3 {[%emt 0:00:16]} Bc5 {[%emt 0:00:20]} 16. Bxc5 {[%emt 0:00:05]} Qxc5+ {[%emt 0:00:05]} 17. Kh1 {[%emt 0:00:06]} Bc6 {[%emt 0:04:32]} 18. Rae1 {[%emt 0:09:09]} Rad8 {[%emt 0:02:23]} 19. Nd5 {[%emt 0:21:30]} Nxd5 {[%emt 0:05:09]} 20. exd5 {[%emt 0:00:06]} Bb5 {[%emt 0:00:09]} 21. Rf2 {[%emt 0:02:37]} f6 {[%emt 0:00:53]} 22. Rd2 {[%emt 0:03:21]} Rd6 {[%emt 0:02:33]} 23. Red1 {[%emt 0:07:31]} g6 {[%emt 0:12:29]} 24. h4 {[%emt 0:01:31]} Kg7 {[%emt 0:03:24]} 25. Be4 {[%emt 0:04:29]} Rfd8 {[%emt 0:04:19]} 26. h5 {[%emt 0:02:15]} Be8 {[%emt 0:00:40]} 27. Rf2 {[%emt 0:01:01]} Qc4 {[%emt 0:05:54]} 28. Re1 {[%emt 0:00:28]} Bf7 {[%emt 0:02:14]} 29. b3 {[%emt 0:00:49]} Qc5 {[%emt 0:01:53]} 30. a4 {[%emt 0:00:22]} b5 {[%emt 0:07:15]} 31. axb5 {[%emt 0:00:04]} axb5 {[%emt 0:00:04]} 32. Ref1 {[%emt 0:00:51]} Qd4 {[%emt 0:04:03]} 33. h6+ {[%emt 0:04:01]} Kxh6 {[%emt 0:01:09]} 34. Qh4+ {[%emt 0:00:50]} Kg7 {[%emt 0:00:13]} 35. Rxf6 {[%emt 0:00:04]} R8d7 {[%emt 0:01:32]} 36. Rxd6 {[%emt 0:00:44]} Rxd6 {[%emt 0:00:12]} 37. Qe7 {[%emt 0:00:17]} 1-0

[Event "12th Arad Open 2019"]
[Site "Arad"]
[Date "2019.07.26"]
[Round "4.33"]
[White "Kelly, Ladislau-Endre"]
[Black "Bobocea, Laurentiu-Vlad"]
[Result "1-0"]
[ECO "B50"]
[WhiteElo "2182"]
[BlackElo "1908"]
[Annotator "NA"]
[PlyCount "111"]
[EventDate "2019.07.24"]
[EventType "swiss"]
[EventCountry "ROU"]
[SourceTitle "playchess.com"]
[Source "ChessBase"]
[SourceQuality "1"]
[TimeControl "40/5400+30:900+30"]

1. e4 {[%emt 0:00:00]} c5 {[%emt 0:02:06]} 2. Nf3 {[%emt 0:00:00]} d6 {[%emt 0:00:09]} 3. g3 {[%emt 0:02:00]} Nf6 {[%emt 0:00:13]} 4. d3 {[%emt 0:00:04]} Nc6 {[%emt 0:00:15]} 5. Bg2 {[%emt 0:00:13]} g6 {[%emt 0:01:03]} 6. c3 {[%emt 0:05:46]} Bg7 {[%emt 0:01:27]} 7. Nbd2 {[%emt 0:00:30]} e5 {[%emt 0:05:06]} 8. O-O {[%emt 0:01:25]} O-O {[%emt 0:00:04]} 9. a4 {[%emt 0:04:08]} h6 {[%emt 0:12:49]} 10. Nc4 {[%emt 0:05:16]} Be6 {[%emt 0:03:11]} 11. Qe2 {[%emt 0:01:59]} Rb8 {[%emt 0:04:57]} 12. h3 {[%emt 0:05:15]} a6 {[%emt 0:03:09]} 13. Ne1 {[%emt 0:02:23]} b5 {[%emt 0:03:24]} 14. axb5 {[%emt 0:00:33]} axb5 {[%emt 0:00:07]} 15. Ne3 {[%emt 0:00:36]} Qd7 {[%emt 0:11:15]} 16. Kh2 {[%emt 0:00:45]} d5 {[%emt 0:02:39]} 17. f4 {[%emt 0:03:49]} exf4 {[%emt 0:11:16]} 18. gxf4 {[%emt 0:01:47]} d4 {[%emt 0:00:20]} 19. f5 {[%emt 0:02:23]} Qd6+ {[%emt 0:02:50]} 20. Kg1 {[%emt 0:00:18]} dxe3 {[%emt 0:02:17]} 21. fxe6 {[%emt 0:00:06]} fxe6 {[%emt 0:05:59]} 22. Ra6 {[%emt 0:03:28]} Nd4 {[%emt 0:04:03]} 23. cxd4 {[%emt 0:00:13]} Qxa6 {[%emt 0:00:05]} 24. dxc5 {[%emt 0:00:04]} e5 {[%emt 0:03:03]} 25. Bxe3 {[%emt 0:03:29]} Nh5 {[%emt 0:02:34]} 26. Qd2 {[%emt 0:03:08]} Rxf1+ {[%emt 0:00:59]} 27. Bxf1 {[%emt 0:00:06]} Qf6 {[%emt 0:06:26]} 28. Nc2 {[%emt 0:04:46]} g5 {[%emt 0:05:04]} 29. Nb4 {[%emt 0:01:56]} Nf4 {[%emt 0:01:58]} 30. Bg2 {[%emt 0:08:56]} Qe6 {[%emt 0:03:14]} 31. Kh2 {[%emt 0:01:23]} Bf8 {[%emt 0:00:36]} 32. Nd5 {[%emt 0:00:29]} Rd8 {[%emt 0:02:11]} 33. Qa5 {[%emt 0:02:34]} Rxd5 {[%emt 0:01:10]} 34. exd5 {[%emt 0:00:28]} Nxd5 {[%emt 0:00:01]} 35. Bxd5 {[%emt 0:15:07]} Qxd5 {[%emt 0:00:06]} 36. Qxb5 {[%emt 0:00:05]} Qf3 {[%emt 0:01:22]} 37. Qc4+ {[%emt 0:01:09]} Kg7 {[%emt 0:00:04]} 38. Qe4 {[%emt 0:01:28]} Qe2+ {[%emt 0:00:09]} 39. Kg3 {[%emt 0:00:10]} Qxb2 {[%emt 0:00:19]} 40. d4 {[%emt 0:00:00]} Be7 {[%emt 0:00:00]} 41. Qxe5+ {[%emt 0:03:21]} Bf6 {[%emt 0:01:29]} 42. Qe4 {[%emt 0:00:28]} h5 {[%emt 0:02:31]} 43. Bf2 {[%emt 0:00:40]} h4+ {[%emt 0:05:28]} 44. Kg2 {[%emt 0:01:05]} Qb4 {[%emt 0:01:37]} 45. Qd5 {[%emt 0:03:13]} Qb5 {[%emt 0:01:35]} 46. Qe6 {[%emt 0:00:54]} Qb8 {[%emt 0:03:15]} 47. d5 {[%emt 0:03:16]} Qf4 {[%emt 0:01:59]} 48. Qg4 {[%emt 0:01:38]} Qd2 {[%emt 0:00:44]} 49. Qe4 {[%emt 0:01:35]} Kf7 {[%emt 0:02:08]} 50. Qe6+ {[%emt 0:01:36]} Kg7 {[%emt 0:00:06]} 51. Qe4 {[%emt 0:01:51]} Kf7 {[%emt 0:00:07]} 52. c6 {[%emt 0:00:54]} Qc3 {[%emt 0:00:48]} 53. d6 {[%emt 0:03:45]} Be5 {[%emt 0:00:30]} 54. Qd5+ {[%emt 0:01:08]} Kg6 {[%emt 0:01:04]} 55. c7 {[%emt 0:01:08]} Bg3 {[%emt 0:00:18]} 56. Qe6+ {[%emt 0:00:23]} 1-0

[Event "12th Arad Open 2019"]
[Site "Arad"]
[Date "2019.07.26"]
[Round "4.34"]
[White "Bulau, Andrei-Cristian"]
[Black "Mihai, Cristian"]
[Result "1/2-1/2"]
[ECO "B12"]
[WhiteElo "2169"]
[BlackElo "1903"]
[Annotator "NA"]
[PlyCount "55"]
[EventDate "2019.07.24"]
[EventType "swiss"]
[EventCountry "ROU"]
[SourceTitle "playchess.com"]
[Source "ChessBase"]
[SourceQuality "1"]
[TimeControl "40/5400+30:900+30"]

1. e4 {[%emt 0:00:00]} c6 {[%emt 0:00:00]} 2. d4 {[%emt 0:00:00]} d5 {[%emt 0:00:00]} 3. e5 {[%emt 0:00:00]} Bf5 {[%emt 0:00:00]} 4. Be2 {[%emt 0:00:00]} e6 {[%emt 0:14:53]} 5. Nf3 {[%emt 0:00:25]} Ne7 {[%emt 0:01:25]} 6. O-O {[%emt 0:00:08]} Nd7 {[%emt 0:01:45]} 7. Nbd2 {[%emt 0:00:57]} Ng6 {[%emt 0:07:31]} 8. Nb3 {[%emt 0:01:20]} Bg4 {[%emt 0:03:15]} 9. Be3 {[%emt 0:02:00]} Be7 {[%emt 0:01:04]} 10. h3 {[%emt 0:02:36]} Bxf3 {[%emt 0:00:10]} 11. Bxf3 {[%emt 0:00:12]} O-O {[%emt 0:02:49]} 12. Bg4 {[%emt 0:02:35]} Nh4 {[%emt 0:05:53]} 13. g3 {[%emt 0:03:16]} Nf5 {[%emt 0:01:15]} 14. Bxf5 {[%emt 0:04:23]} exf5 {[%emt 0:00:07]} 15. Kg2 {[%emt 0:00:22]} Nb6 {[%emt 0:06:54]} 16. g4 {[%emt 0:04:48]} Qd7 {[%emt 0:00:05]} 17. Qf3 {[%emt 0:03:25]} f6 {[%emt 0:05:09]} 18. exf6 {[%emt 0:26:04]} Rxf6 {[%emt 0:03:06]} 19. g5 {[%emt 0:00:19]} Rff8 {[%emt 0:00:42]} 20. Bf4 {[%emt 0:09:08]} Nc4 {[%emt 0:02:47]} 21. Rae1 {[%emt 0:03:41]} Rae8 {[%emt 0:05:22]} 22. Re2 {[%emt 0:00:41]} Nxb2 {[%emt 0:13:16]} 23. Rfe1 {[%emt 0:00:15]} Nc4 {[%emt 0:00:05]} 24. Qh5 {[%emt 0:01:05]} g6 {[%emt 0:01:19]} 25. Qh6 {[%emt 0:00:54]} Bb4 {[%emt 0:01:31]} 26. c3 {[%emt 0:02:55]} Rxe2 {[%emt 0:03:22]} 27. Rxe2 {[%emt 0:00:20]} Ba3 {[%emt 0:00:08]} 28. Be5 1/2-1/2

[Event "12th Arad Open 2019"]
[Site "Arad"]
[Date "2019.07.26"]
[Round "4.35"]
[White "Isfan, Ioan-Marius"]
[Black "Bonte, Arghir"]
[Result "1-0"]
[ECO "D02"]
[WhiteElo "2164"]
[BlackElo "1898"]
[Annotator "NA"]
[PlyCount "63"]
[EventDate "2019.07.24"]
[EventType "swiss"]
[EventCountry "ROU"]
[SourceTitle "playchess.com"]
[Source "ChessBase"]
[SourceQuality "1"]
[TimeControl "40/5400+30:900+30"]

1. d4 {[%emt 0:00:00]} d5 {[%emt 0:00:01]} 2. Nf3 {[%emt 0:00:00]} e6 {[%emt 0:00:48]} 3. c4 {[%emt 0:00:06]} c6 {[%emt 0:00:29]} 4. Qc2 {[%emt 0:00:21]} Nf6 {[%emt 0:02:30]} 5. Nbd2 {[%emt 0:00:14]} Bb4 {[%emt 0:00:42]} 6. a3 {[%emt 0:00:32]} Bxd2+ {[%emt 0:01:24]} 7. Bxd2 {[%emt 0:00:36]} h6 {[%emt 0:00:49]} 8. e3 {[%emt 0:01:58]} Ne4 {[%emt 0:01:05]} 9. Bc1 {[%emt 0:00:06]} Nd7 {[%emt 0:00:46]} 10. Bd3 {[%emt 0:00:32]} f5 {[%emt 0:02:05]} 11. b4 {[%emt 0:01:09]} O-O {[%emt 0:02:54]} 12. O-O {[%emt 0:00:22]} Ng5 {[%emt 0:03:26]} 13. Ne5 {[%emt 0:01:48]} Nxe5 {[%emt 0:04:53]} 14. dxe5 {[%emt 0:00:16]} Qe8 {[%emt 0:05:32]} 15. a4 {[%emt 0:06:08]} h5 {[%emt 0:01:46]} 16. f3 {[%emt 0:05:16]} h4 {[%emt 0:05:01]} 17. e4 {[%emt 0:01:22]} f4 {[%emt 0:00:47]} 18. b5 {[%emt 0:02:17]} h3 {[%emt 0:02:36]} 19. Ba3 {[%emt 0:00:09]} Rf7 {[%emt 0:03:19]} 20. exd5 {[%emt 0:00:11]} exd5 {[%emt 0:00:57]} 21. Bg6 {[%emt 0:00:10]} Qxe5 {[%emt 0:00:34]} 22. Rfe1 {[%emt 0:01:41]} Qd4+ {[%emt 0:02:25]} 23. Qf2 {[%emt 0:00:26]} Qxf2+ {[%emt 0:00:38]} 24. Kxf2 {[%emt 0:00:02]} Bf5 {[%emt 0:00:33]} 25. Bxf7+ {[%emt 0:00:16]} Nxf7 {[%emt 0:01:36]} 26. cxd5 {[%emt 0:00:34]} cxb5 {[%emt 0:01:47]} 27. axb5 {[%emt 0:00:12]} Rd8 {[%emt 0:00:25]} 28. d6 {[%emt 0:00:21]} Bd3 {[%emt 0:01:35]} 29. b6 {[%emt 0:03:31]} axb6 {[%emt 0:00:51]} 30. gxh3 {[%emt 0:00:19]} Bf5 {[%emt 0:02:18]} 31. h4 {[%emt 0:00:18]} Nxd6 {[%emt 0:01:28]} 32. Rad1 {[%emt 0:00:09]} 1-0

[Event "12th Arad Open 2019"]
[Site "Arad"]
[Date "2019.07.26"]
[Round "4.36"]
[White "Stanciu, Andreea-Briana"]
[Black "Pavlenko, Bogdan"]
[Result "1/2-1/2"]
[ECO "B07"]
[WhiteElo "1917"]
[BlackElo "2164"]
[Annotator "NA"]
[PlyCount "79"]
[EventDate "2019.07.24"]
[EventType "swiss"]
[EventCountry "ROU"]
[SourceTitle "playchess.com"]
[Source "ChessBase"]
[SourceQuality "1"]
[TimeControl "40/5400+30:900+30"]

1. d4 {[%emt 0:00:00]} d6 {[%emt 0:00:00]} 2. e4 {[%emt 0:00:00]} Nf6 {[%emt 0:00:00]} 3. Nc3 {[%emt 0:00:00]} c6 {[%emt 0:00:00]} 4. f4 {[%emt 0:00:05]} Qa5 {[%emt 0:00:09]} 5. Bd3 {[%emt 0:00:11]} e5 {[%emt 0:00:09]} 6. Nf3 {[%emt 0:01:21]} Nbd7 {[%emt 0:00:42]} 7. O-O {[%emt 0:18:48]} Be7 {[%emt 0:00:18]} 8. Kh1 {[%emt 0:01:15]} O-O {[%emt 0:00:18]} 9. Qe1 {[%emt 0:04:44]} Qc7 {[%emt 0:02:29]} 10. fxe5 {[%emt 0:14:17]} dxe5 {[%emt 0:00:41]} 11. Nxe5 {[%emt 0:07:20]} Nxe5 {[%emt 0:00:25]} 12. dxe5 {[%emt 0:00:05]} Qxe5 {[%emt 0:00:33]} 13. Bf4 {[%emt 0:00:11]} Qh5 {[%emt 0:00:25]} 14. Qg3 {[%emt 0:05:29]} Qg4 {[%emt 0:02:57]} 15. Qxg4 {[%emt 0:11:07]} Bxg4 {[%emt 0:00:22]} 16. h3 {[%emt 0:00:11]} Be6 {[%emt 0:00:14]} 17. Rad1 {[%emt 0:01:45]} Rfd8 {[%emt 0:03:37]} 18. a3 {[%emt 0:09:43]} Rd7 {[%emt 0:02:36]} 19. Be2 {[%emt 0:01:56]} Rad8 {[%emt 0:00:43]} 20. Rxd7 {[%emt 0:01:24]} Rxd7 {[%emt 0:00:43]} 21. Rd1 {[%emt 0:00:23]} Kf8 {[%emt 0:02:41]} 22. Bf3 {[%emt 0:09:26]} Ke8 {[%emt 0:03:06]} 23. Be3 {[%emt 0:02:09]} Rxd1+ {[%emt 0:01:40]} 24. Nxd1 {[%emt 0:00:31]} a6 {[%emt 0:01:18]} 25. Nf2 {[%emt 0:01:09]} Nd7 {[%emt 0:02:58]} 26. Nd3 {[%emt 0:00:09]} Bf6 {[%emt 0:00:23]} 27. b3 {[%emt 0:02:55]} Ne5 {[%emt 0:01:17]} 28. Bd1 {[%emt 0:02:53]} Ke7 {[%emt 0:04:12]} 29. Bc5+ {[%emt 0:01:15]} Ke8 {[%emt 0:03:00]} 30. Nf4 {[%emt 0:00:10]} Ng6 {[%emt 0:01:20]} 31. Nxe6 {[%emt 0:00:27]} fxe6 {[%emt 0:00:57]} 32. Bh5 {[%emt 0:01:40]} Kf7 {[%emt 0:01:17]} 33. Kg1 {[%emt 0:01:14]} Be5 {[%emt 0:01:31]} 34. Kf2 {[%emt 0:00:36]} Kf6 {[%emt 0:00:24]} 35. g3 {[%emt 0:00:09]} Bc7 {[%emt 0:00:45]} 36. Bd4+ {[%emt 0:00:57]} Ne5 {[%emt 0:01:35]} 37. Be2 {[%emt 0:00:36]} Kf7 {[%emt 0:01:11]} 38. a4 {[%emt 0:00:40]} Ke7 {[%emt 0:00:41]} 39. b4 {[%emt 0:00:56]} Bd6 {[%emt 0:00:59]} 40. c3 {[%emt 0:00:00]} 1/2-1/2